[Event "XVI Memorial Lezcano Montalvo 2024"]
[Site "Gran Canaria"]
[Date "2024.03.25"]
[Round "3.38"]
[White "Cabrera Martel, Isaac"]
[Black "de Leon Navarro, Claudio"]
[Result "0-1"]
[ECO "D00"]
[WhiteElo "1655"]
[BlackElo "1931"]
[Annotator "RC"]
[PlyCount "74"]
[EventDate "2024.03.23"]
[EventType "swiss"]
[EventCountry "ESP"]
[SourceTitle "playchess.com"]
[Source "ChessBase"]
[SourceQuality "1"]
[TimeControl "5400+30"]

1. d4 {[%emt 0:02:13]} Nf6 {[%emt 0:03:36]} 2. Nc3 {[%emt 0:00:06]} d5 {[%emt 0:00:52]} 3. Bf4 {[%emt 0:00:07]} e6 {[%emt 0:01:23]} 4. e3 {[%emt 0:01:27]} Bb4 {[%emt 0:01:28]} 5. Bd3 {[%emt 0:01:38]} c5 {[%emt 0:01:02]} 6. dxc5 {[%emt 0:04:58]} Nbd7 {[%emt 0:01:07]} 7. Nf3 {[%emt 0:07:02]} Qa5 {[%emt 0:05:37]} 8. O-O {[%emt 0:21:51]} Bxc3 {[%emt 0:01:55]} 9. bxc3 {[%emt 0:00:29]} Qxc3 {[%emt 0:04:48]} 10. Bb5 {[%emt 0:09:00]} Qxc5 {[%emt 0:04:30]} 11. Qe2 {[%emt 0:01:55]} O-O {[%emt 0:07:36]} 12. c4 {[%emt 0:07:26]} a6 {[%emt 0:02:29]} 13. Bxd7 {[%emt 0:07:38]} Bxd7 {[%emt 0:01:07]} 14. Rfc1 {[%emt 0:07:50]} Rac8 {[%emt 0:05:27]} 15. cxd5 {[%emt 0:06:47]} Qxc1+ {[%emt 0:06:18]} 16. Rxc1 {[%emt 0:00:22]} Rxc1+ {[%emt 0:00:12]} 17. Ne1 {[%emt 0:04:20]} Nxd5 {[%emt 0:04:57]} 18. h3 {[%emt 0:04:43]} Bb5 {[%emt 0:12:14]} 19. Qd2 {[%emt 0:01:02]} Nxf4 {[%emt 0:00:21]} 20. exf4 {[%emt 0:00:38]} Rfc8 {[%emt 0:01:15]} 21. Kh2 {[%emt 0:01:07]} h6 {[%emt 0:01:48]} 22. Qe3 {[%emt 0:02:24]} R8c3 {[%emt 0:01:57]} 23. Qe5 {[%emt 0:01:04]} Bc6 {[%emt 0:00:15]} 24. Qe2 {[%emt 0:01:53]} Rc4 {[%emt 0:00:54]} 25. Nd3 {[%emt 0:01:34]} R1c2 {[%emt 0:00:54]} 26. Qh5 {[%emt 0:01:42]} f6 {[%emt 0:02:17]} 27. Qa5 {[%emt 0:01:09]} Rd4 {[%emt 0:05:48]} 28. Nb4 {[%emt 0:01:05]} Rxf2 {[%emt 0:00:50]} 29. Nxc6 {[%emt 0:00:16]} bxc6 {[%emt 0:00:00]} 30. Qxa6 {[%emt 0:00:08]} Rdd2 {[%emt 0:02:15]} 31. Qxc6 {[%emt 0:02:06]} Rxg2+ {[%emt 0:02:17]} 32. Kh1 {[%emt 0:00:00]} Rge2 {[%emt 0:01:14]} 33. Qc8+ {[%emt 0:00:24]} Kh7 {[%emt 0:00:21]} 34. Qc1 {[%emt 0:00:17]} Rxa2 {[%emt 0:00:54]} 35. Kg1 {[%emt 0:00:23]} Rg2+ {[%emt 0:02:01]} 36. Kf1 {[%emt 0:00:45]} Raf2+ {[%emt 0:00:45]} 37. Ke1 {[%emt 0:00:16]} Rg1+ {[%emt 0:16:16]} 0-1

[Event "XVI Memorial Lezcano Montalvo 2024"]
[Site "Gran Canaria"]
[Date "2024.03.25"]
[Round "3.39"]
[White "Ramirez Maillo, Juan Adonay"]
[Black "Martinez Correa, Rafael"]
[Result "1-0"]
[ECO "B22"]
[WhiteElo "1918"]
[BlackElo "1597"]
[Annotator "NA RC"]
[PlyCount "42"]
[EventDate "2024.03.23"]
[EventType "swiss"]
[EventCountry "ESP"]
[SourceTitle "playchess.com"]
[Source "ChessBase"]
[SourceQuality "1"]
[TimeControl "5400+30"]

1. e4 {[%emt 0:00:02]} c5 {[%emt 0:00:06]} 2. c3 {[%emt 0:00:04]} d5 {[%emt 0:00:10]} 3. exd5 {[%emt 0:00:06]} Qxd5 {[%emt 0:00:09]} 4. d4 {[%emt 0:00:03]} Nc6 {[%emt 0:00:07]} 5. Nf3 {[%emt 0:00:06]} Bf5 {[%emt 0:00:08]} 6. Na3 {[%emt 0:02:07]} cxd4 {[%emt 0:00:44]} 7. Bc4 {[%emt 0:01:08]} Qe4+ {[%emt 0:00:58]} 8. Be3 {[%emt 0:00:19]} e6 {[%emt 0:00:50]} 9. cxd4 {[%emt 0:03:04]} Bb4+ {[%emt 0:01:58]} 10. Kf1 {[%emt 0:01:19]} Bxa3 {[%emt 0:01:15]} 11. bxa3 {[%emt 0:00:10]} Nf6 {[%emt 0:01:10]} 12. Ng5 {[%emt 0:03:56]} Qc2 {[%emt 0:01:23]} 13. Qxc2 {[%emt 0:00:50]} Bxc2 {[%emt 0:00:10]} 14. Rc1 {[%emt 0:00:17]} Bf5 {[%emt 0:00:45]} 15. Nf3 {[%emt 0:02:51]} Be4 {[%emt 0:00:59]} 16. Ke2 {[%emt 0:00:57]} Bd5 {[%emt 0:01:29]} 17. Rc2 {[%emt 0:06:27]} Bxc4+ {[%emt 0:01:51]} 18. Rxc4 {[%emt 0:00:07]} Kd7 {[%emt 0:00:44]} 19. Rb1 {[%emt 0:01:14]} b6 {[%emt 0:00:31]} 20. Rbc1 {[%emt 0:01:33]} Rac8 {[%emt 0:00:26]} 21. Rxc6 {[%emt 0:00:20]} Rxc6 {[%emt 0:01:26]} 1-0

[Event "XVI Memorial Lezcano Montalvo 2024"]
[Site "Gran Canaria"]
[Date "2024.03.25"]
[Round "3.40"]
[White "Garbezza, Davide"]
[Black "Parra Erazo, Santiago"]
[Result "1-0"]
[ECO "D32"]
[WhiteElo "1888"]
[BlackElo "1439"]
[Annotator "NA RC"]
[PlyCount "41"]
[EventDate "2024.03.23"]
[EventType "swiss"]
[EventCountry "ESP"]
[SourceTitle "playchess.com"]
[Source "ChessBase"]
[SourceQuality "1"]
[TimeControl "5400+30"]

1. d4 {[%emt 0:00:18]} d5 {[%emt 0:00:09]} 2. c4 {[%emt 0:00:16]} e6 {[%emt 0:00:11]} 3. Nc3 {[%emt 0:00:24]} Nf6 {[%emt 0:00:16]} 4. Nf3 {[%emt 0:00:09]} Be7 {[%emt 0:00:40]} 5. Bf4 {[%emt 0:00:18]} O-O {[%emt 0:00:15]} 6. e3 {[%emt 0:00:16]} c5 {[%emt 0:00:26]} 7. cxd5 {[%emt 0:05:16]} exd5 {[%emt 0:00:35]} 8. Be2 {[%emt 0:01:24]} Nc6 {[%emt 0:00:40]} 9. O-O {[%emt 0:03:19]} h6 {[%emt 0:00:47]} 10. dxc5 {[%emt 0:11:36]} Bxc5 {[%emt 0:00:50]} 11. Rc1 {[%emt 0:00:42]} Bb6 {[%emt 0:02:19]} 12. Na4 {[%emt 0:01:43]} Be6 {[%emt 0:02:00]} 13. Nxb6 {[%emt 0:03:12]} Qxb6 {[%emt 0:01:07]} 14. b3 {[%emt 0:04:20]} Nh5 {[%emt 0:01:13]} 15. Bd6 {[%emt 0:05:52]} Rfd8 {[%emt 0:00:16]} 16. Bc5 {[%emt 0:00:19]} Qc7 {[%emt 0:00:32]} 17. Nd4 {[%emt 0:07:07]} Nxd4 {[%emt 0:01:24]} 18. Bxd4 {[%emt 0:00:23]} Qd7 {[%emt 0:01:21]} 19. Bxh5 {[%emt 0:00:22]} b6 {[%emt 0:01:12]} 20. Qd2 {[%emt 0:02:43]} Rdc8 {[%emt 0:01:28]} 21. Qb2 {[%emt 0:03:01]} 1-0

[Event "XVI Memorial Lezcano Montalvo 2024"]
[Site "Gran Canaria"]
[Date "2024.03.25"]
[Round "3.41"]
[White "Arana Martin, Ivan"]
[Black "Broeder, Hans-Gert"]
[Result "0-1"]
[ECO "C55"]
[WhiteElo "1570"]
[BlackElo "1860"]
[Annotator "NA RC"]
[PlyCount "96"]
[EventDate "2024.03.23"]
[EventType "swiss"]
[EventCountry "ESP"]
[SourceTitle "playchess.com"]
[Source "ChessBase"]
[SourceQuality "1"]
[TimeControl "5400+30"]

1. e4 {[%emt 0:00:10]} e5 {[%emt 0:00:02]} 2. Nf3 {[%emt 0:00:32]} Nc6 {[%emt 0:00:17]} 3. Bc4 {[%emt 0:00:17]} Nf6 {[%emt 0:00:51]} 4. O-O {[%emt 0:00:11]} Bc5 {[%emt 0:01:58]} 5. Ng5 {[%emt 0:00:25]} O-O {[%emt 0:00:36]} 6. Nc3 {[%emt 0:00:47]} a6 {[%emt 0:02:18] C55: Two Knights: 4 d3, 4 d4 exd4 5 e5 and Max Lange Attack.} 7. a4 {[%emt 0:05:33]} d6 {[%emt 0:01:24]} 8. h3 {[%emt 0:02:02]} h6 {[%emt 0:01:38]} 9. Nf3 {[%emt 0:00:50]} Be6 {[%emt 0:01:29]} 10. Ba2 {[%emt 0:13:51]} Qd7 {[%emt 0:05:43]} 11. Bxe6 {[%emt 0:03:59]} fxe6 {[%emt 0:00:08]} 12. d3 {[%emt 0:02:11]} Qf7 {[%emt 0:07:35]} 13. Be3 {[%emt 0:03:27]} Nd4 {[%emt 0:00:21]} 14. Bxd4 {[%emt 0:00:26]} exd4 {[%emt 0:00:48]} 15. Ne2 {[%emt 0:00:25]} e5 {[%emt 0:00:29]} 16. c3 {[%emt 0:01:57]} dxc3 {[%emt 0:00:22]} 17. Nxc3 {[%emt 0:01:53]} Rae8 {[%emt 0:02:17]} 18. Qc2 {[%emt 0:10:09]} Nh5 {[%emt 0:01:38]} 19. Ne2 {[%emt 0:10:03]} Qe7 {[%emt 0:04:22]} 20. Qb3+ {[%emt 0:02:37]} Kh7 {[%emt 0:04:07]} 21. Rab1 {[%emt 0:12:14]} c6 {[%emt 0:03:53]} 22. Rfd1 {[%emt 0:04:44]} Rf7 {[%emt 0:08:31]} 23. d4 {[%emt 0:02:13]} exd4 {[%emt 0:00:52]} 24. Nexd4 {[%emt 0:00:17]} Nf4 {[%emt 0:07:02]} 25. Nf5 {[%emt 0:04:40]} Qf6 {[%emt 0:03:41]} 26. Re1 {[%emt 0:03:00]} g6 {[%emt 0:02:30]} 27. N5d4 {[%emt 0:00:49]} Ref8 {[%emt 0:06:03]} 28. Rbd1 {[%emt 0:01:15]} Re7 {[%emt 0:05:42]} 29. Qc3 {[%emt 0:02:09]} Ba7 {[%emt 0:02:22]} 30. Nb3 {[%emt 0:00:50]} Nxh3+ {[%emt 0:02:15]} 31. gxh3 {[%emt 0:01:53]} Qxf3 {[%emt 0:00:00]} 32. Qxf3 {[%emt 0:00:20]} Rxf3 {[%emt 0:00:00]} 33. Nd4 {[%emt 0:00:30]} Bxd4 {[%emt 0:02:52]} 34. Rxd4 {[%emt 0:00:10]} d5 {[%emt 0:01:10]} 35. Kg2 {[%emt 0:00:37]} Rb3 {[%emt 0:02:31]} 36. Re2 {[%emt 0:01:43]} dxe4 {[%emt 0:00:46]} 37. Rdxe4 {[%emt 0:02:26]} Rxe4 {[%emt 0:00:11]} 38. Rxe4 {[%emt 0:00:02]} Kg7 {[%emt 0:00:53]} 39. Re2 {[%emt 0:00:09]} Kf6 {[%emt 0:00:29]} 40. f3 {[%emt 0:00:19]} Rb4 {[%emt 0:01:02]} 41. Re4 {[%emt 0:00:15]} Rxb2+ {[%emt 0:19:52]} 42. Kg3 {[%emt 0:09:10]} g5 {[%emt 0:00:00]} 43. h4 {[%emt 0:00:00]} a5 {[%emt 0:00:00]} 44. Kg4 {[%emt 0:00:00]} Rb4 {[%emt 0:00:00]} 45. hxg5+ {[%emt 0:00:00]} hxg5 {[%emt 0:00:00]} 46. Kg3 {[%emt 0:00:00]} Rxe4 {[%emt 0:00:00]} 47. fxe4 {[%emt 0:00:00]} Ke5 {[%emt 0:00:00]} 48. Kf3 {[%emt 0:00:00]} g4+ {[%emt 0:00:00]} 0-1

[Event "XVI Memorial Lezcano Montalvo 2024"]
[Site "Gran Canaria"]
[Date "2024.03.26"]
[Round "4.1"]
[White "Sanz Wawer, Daniel"]
[Black "Dvirnyy, Danyyil"]
[Result "0-1"]
[ECO "A48"]
[WhiteElo "2397"]
[BlackElo "2482"]
[Annotator "TA"]
[PlyCount "73"]
[EventDate "2024.03.23"]
[EventType "swiss"]
[EventCountry "ESP"]
[SourceTitle "playchess.com"]
[Source "ChessBase"]
[SourceQuality "1"]
[TimeControl "5400+30"]

{[%evp 12,73,-16,-7,-7,-16,-14,-20,-15,0,1,-11,0,0,0,0,0,-34,-21,-132,-104,-136,-45,-79,-77,-59,-68,-81,-80,-74,-72,-80,-77,-79,-79,-99,-101,-101,-101,-112,-122,-123,-100,-124,-110,-122,-102,-114,-97,-120,-98,-147,-139,-148,-123,-266,-264,-236,-149,-309,-219,-29997,-29998,-29998]} 1. d4 {[%emt 0:00:03]} Nf6 {[%emt 0:01:17]} 2. Nf3 {[%emt 0:00:08]} g6 {[%emt 0:01:05]} 3. Bf4 {[%emt 0:00:38]} Bg7 {[%emt 0:00:18]} 4. e3 {[%emt 0:00:16]} O-O {[%emt 0:00:28]} 5. h3 {[%emt 0:00:11]} c5 {[%emt 0:06:37]} 6. Nbd2 {[%emt 0:02:08]} d6 {[%emt 0:01:35]} 7. Be2 {[%emt 0:02:55]} Nc6 {[%emt 0:00:19]} 8. Bh2 {[%emt 0:02:09]} cxd4 {[%emt 0:03:31]} 9. exd4 {[%emt 0:01:03] [#]} e5 $1 {[%emt 0:03:59] The position is equal.} 10. dxe5 {[%emt 0:18:20]} dxe5 {[%emt 0:04:25]} 11. Nxe5 {[%emt 0:07:47]} Nd5 {[%emt 0:01:26]} (11... Nxe5 {with more complications.} 12. Bxe5 Re8 13. Nf3 Qa5+) 12. Nxc6 {[%emt 0:03:14]} bxc6 {[%emt 0:00:08]} 13. Nc4 {[%emt 0:17:49]} Qg5 {[%emt 0:05:41]} (13... Re8 $5 14. O-O $8 Bxb2 15. Nxb2 Nc3 16. Qxd8 Nxe2+ 17. Kh1 Rxd8 $11) 14. Bg3 {[%emt 0:08:22]} Ba6 {[%emt 0:08:38] White must now prevent ...Bxc4.} (14... Re8 $5 15. O-O Bxb2 16. Nxb2 Nc3 $15) 15. Qd2 {[%emt 0:03:05]} (15. O-O $1 $11 {keeps the balance.}) 15... Qxd2+ $17 {[%emt 0:01:35]} 16. Kxd2 {[%emt 0:04:25][%cal Be1d2,Bd2d1,Bd1c2][%mdl 32]} Rfe8 {[%emt 0:11:38]} (16... Rad8 $17 17. Nd6 Bxe2 18. Kxe2 Bxb2) 17. Bd3 $15 {[%emt 0:05:06]} Bh6+ {[%emt 0:08:45]} 18. Kd1 {[%emt 0:02:09]} Nb4 {[%emt 0:06:51] ...Nxd3 is the strong threat.} 19. Nd6 {[%emt 0:03:35]} Bxd3 {[%emt 0:00:21]} 20. cxd3 {[%emt 0:00:06]} Re6 {[%emt 0:00:14][%cal Of7f5] Threatens to win with ...f5!} 21. a3 {[%emt 0:01:51]} Nxd3 {[%emt 0:01:08]} 22. Kc2 {[%emt 0:01:49] [#]} Nf4 {[%emt 0:02:06] Black is more active.} 23. Rad1 {[%emt 0:02:16]} Nxg2 {[%emt 0:01:37]} 24. Rhg1 {[%emt 0:01:19]} Nf4 {[%emt 0:01:20]} 25. Nf5 {[%emt 0:03:01]} Bg5 {[%emt 0:02:17]} ({Reject} 25... gxf5 $6 26. Bxf4+ Kh8 27. Bxh6 Rxh6 28. Rd7 Rxh3 29. Rxf7 $14) 26. h4 {[%emt 0:02:35]} Ne2 {[%emt 0:01:26]} 27. hxg5 {[%emt 0:01:10]} gxf5 {[%emt 0:00:05]} 28. Rg2 {[%emt 0:01:43]} f4 {[%emt 0:04:28]} 29. Bh2 {[%emt 0:00:05]} Re4 {[%emt 0:00:24] Strongly threatening ...f3.} 30. Rg4 {[%emt 0:02:07]} Rae8 {[%emt 0:01:17]} 31. Kb1 {[%emt 0:02:18]} ({White should play} 31. Rd7) 31... Rb8 {[%emt 0:04:55] And now ...Nc3+ would win.} 32. Ka2 {[%emt 0:01:30]} Rb5 $36 {[%emt 0:00:47][%mdl 2048] Black is really pushing.} 33. Rh1 {[%emt 0:00:50]} (33. Rd2 $17) 33... Rd4 $19 {[%emt 0:00:28]} 34. Ka1 {[%emt 0:00:35]} Rd2 {[%emt 0:06:22]} 35. Rb1 {[%emt 0:00:07]} (35. Bxf4 $17 Rdxb2 36. Be5) 35... Rb3 {[%emt 0:00:37][%cal Oe2c3] ( -> ...Nc3!)} 36. Rh4 $2 {[%emt 0:00:59] [#]} (36. Bxf4 $19 Rd4 37. Rg3 (37. Ka2 $2 Rb5 $19) 37... Nxg3 38. fxg3) 36... Nc3 $1 {[%emt 0:00:17][%mdl 512]} 37. Bxf4 {[%emt 0:00:43] Weighted Error Value: White=0.39/Black=0.13 (very precise) .  Mistake:       	White=5     	Black=1      Inaccurate:     	White=2     	Black=1      OK:         	White=11    	Black=15     Best:        	White=4     	Black=3} (37. Rh3 Rxa3+) 0-1

[Event "XVI Memorial Lezcano Montalvo 2024"]
[Site "Gran Canaria"]
[Date "2024.03.26"]
[Round "4.2"]
[White "Larino Nieto, David"]
[Black "Fiorito, Joaquin"]
[Result "1-0"]
[ECO "A11"]
[WhiteElo "2365"]
[BlackElo "2409"]
[Annotator "TA"]
[PlyCount "105"]
[EventDate "2024.03.23"]
[EventType "swiss"]
[EventCountry "ESP"]
[SourceTitle "playchess.com"]
[Source "ChessBase"]
[SourceQuality "1"]
[TimeControl "5400+30"]

{[%evp 9,105,0,22,22,22,20,26,-6,7,-27,-9,-15,-4,-27,3,-50,-72,-59,-64,-60,-68,-72,-76,-75,-65,-77,-58,-112,-64,-150,-155,-154,15,-100,-76,-81,-72,-75,-80,-84,-85,-84,-58,-52,0,0,0,0,0,0,0,0,0,0,0,0,0,0,0,0,0,0,0,0,0,0,0,0,63,16,142,19,21,0,150,143,151,61,507,434,432,413,6307,5904,29976,29977,29992,29991,29991,29992,29992,29990,29995,29996,29996,29996,29996,29995]} 1. c4 {[%emt 0:08:52]} c6 {[%emt 0:00:46]} 2. Nf3 {[%emt 0:00:41]} d5 {[%emt 0:00:06]} 3. e3 {[%emt 0:00:03]} Nf6 {[%emt 0:00:58]} 4. Nc3 {[%emt 0:01:10]} e6 {[%emt 0:03:18]} 5. b3 {[%emt 0:00:24]} Be7 {[%emt 0:01:05]} 6. Bb2 {[%emt 0:00:05]} O-O {[%emt 0:00:07]} 7. Qc2 {[%emt 0:01:58]} Nbd7 {[%emt 0:01:18]} 8. cxd5 {[%emt 0:01:21] White has an edge.} exd5 {[%emt 0:01:07]} 9. Nd4 {[%emt 0:03:16]} Nc5 {[%emt 0:04:38]} 10. Be2 {[%emt 0:10:51]} a5 {[%emt 0:03:27]} 11. Rc1 {[%emt 0:07:11]} a4 {[%emt 0:02:20]} 12. b4 {[%emt 0:00:36]} (12. Nxa4 $11 Nxa4 13. bxa4) 12... a3 $1 $15 {[%emt 0:02:22]} 13. Bxa3 {[%emt 0:01:06]} Ne6 $1 {[%emt 0:00:12]} (13... Rxa3 $6 14. bxc5 Bxc5 15. Nb1 (15. Ncb5 cxb5 16. Qxc5 Rxa2 $11) 15... Bxd4 (15... Ra5 16. Nb3 $16) 16. Nxa3 $14) 14. Nxe6 {[%emt 0:23:22]} Bxe6 {[%emt 0:00:03]} 15. Nb1 {[%emt 0:00:34]} d4 {[%emt 0:04:14][%mdl 1024] Black has strong compensation.} 16. O-O {[%emt 0:01:00]} Qd7 {[%emt 0:01:31]} 17. Qb2 {[%emt 0:03:52]} d3 {[%emt 0:07:50]} 18. Bf3 {[%emt 0:00:45] [#]} (18. Bd1 $1 $15) 18... Nd5 {[%emt 0:00:16]} (18... Rfc8 $1 $17 19. e4 Qc7) 19. Bxd5 {[%emt 0:05:55]} (19. b5 $15) 19... Bxd5 $17 {[%emt 0:01:19]} (19... cxd5 $6 20. b5 $11) 20. Qd4 {[%emt 0:01:39] White is weak on the light squares} Qf5 $2 {[%emt 0:01:56]} (20... Bf6 $17 21. Qxd3 Rfd8) 21. f3 {[%emt 0:08:24]} (21. e4 $1 $11 Bxe4 (21... Qxe4 22. Qxe4 Bxe4 23. Rfe1 $18) 22. Rfe1 (22. Rce1 Bd5 $11)) 21... Bxa2 {[%emt 0:01:37]} 22. Qb2 {[%emt 0:03:24]} Bxb1 {[%emt 0:00:55]} 23. Rxb1 {[%emt 0:00:02]} Qb5 {[%emt 0:02:23] And now ...Qa4 would win.} 24. Qc3 {[%emt 0:01:35]} Bf6 {[%emt 0:00:24]} 25. Qc1 {[%emt 0:00:57] [#]} Ra4 $1 {[%emt 0:01:22]} 26. Bb2 {[%emt 0:00:01]} Bxb2 {[%emt 0:00:55]} (26... Rxb4 $15 27. Ba3 (27. Bxf6 gxf6 28. Rd1 Ra8 $17) 27... Rxb1 28. Qxb1 Rc8) 27. Qxb2 $11 {[%emt 0:00:02]} Rfa8 {[%emt 0:00:20]} 28. Qd4 {[%emt 0:00:57]} Ra2 {[%emt 0:02:05]} 29. Rfd1 {[%emt 0:00:49]} h6 {[%emt 0:00:55]} 30. Rb3 {[%emt 0:01:16]} R8a3 {[%emt 0:00:13]} 31. Rc3 {[%emt 0:01:07]} Ra4 {[%emt 0:05:21]} 32. Rc4 {[%emt 0:05:15]} R4a3 {[%emt 0:01:58]} 33. Rc3 {[%emt 0:04:30]} f5 {[%emt 0:01:25]} 34. Rc5 {[%emt 0:01:25]} Qa4 {[%emt 0:00:06]} 35. Rcc1 {[%emt 0:01:09]} Rc2 {[%emt 0:02:07]} 36. h4 {[%emt 0:01:22]} Qb3 {[%emt 0:05:33]} 37. Qd8+ {[%emt 0:00:06]} Kh7 {[%emt 0:00:05] ...Rxc1 would now be deadly.} 38. Qd7 {[%emt 0:00:11][%csl LRb7,LRf5]} Kg6 {[%emt 0:04:24]} (38... Qd5 39. Qxd5 cxd5 40. Rxc2 dxc2 41. Rc1 $17) (38... Raa2 $11) 39. h5+ {[%emt 0:00:42]} ({Of course not} 39. Qxb7 Qd5 $11) (39. b5 $14 {might be stronger.}) 39... Kf6 {[%emt 0:00:03]} (39... Kh7 $1 $11) 40. Qd8+ {[%emt 0:01:17]} ({White should try} 40. Qxb7 $16 {Strongly threatening Qc8.} Qe6 41. Qc7) 40... Kf7 {[%emt 0:00:08]} 41. Qd7+ {[%emt 0:00:40]} (41. Qc7+ $11 Kf6 42. b5 (42. Qxb7 Qc4 $16)) 41... Kf6 $16 {[%emt 0:00:23]} 42. Qxb7 {[%emt 0:00:26]} Raa2 {[%emt 0:00:08]} 43. Qb8 {[%emt 0:00:50]} (43. Qd7 $16) 43... Rab2 $2 {[%emt 0:03:09][%mdl 8192]} (43... Qb2 $1 $14) 44. Qf8+ {[%emt 0:00:17]} Qf7 {[%emt 0:01:57]} 45. Qd8+ {[%emt 0:00:07]} Qe7 {[%emt 0:00:21]} (45... Ke6 $142 46. Qxd3 Qd7 47. Qxc2 Rxc2 48. Rxc2 Kf6) 46. Qxd3 $18 {[%emt 0:00:03]} Rxc1 {[%emt 0:01:05]} 47. Rxc1 {[%emt 0:00:27] KQR-KQR. White mates.} Kg5 {[%emt 0:00:29]} 48. Rxc6 {[%emt 0:01:05]} Qf7 {[%emt 0:00:05]} 49. f4+ {[%emt 0:00:28]} Kh4 {[%emt 0:00:07]} 50. Qf1 {[%emt 0:00:48]} Qd5 {[%emt 0:01:43]} 51. Qf2+ {[%emt 0:00:09]} Kg4 {[%emt 0:00:38]} 52. Qe2+ {[%emt 0:00:06]} Kh4 {[%emt 0:00:30] [#]} 53. Kh2 $1 {[%emt 0:01:05] What a bad dream for Black.   Weighted Error Value: White=0.21 (precise) /Black=0.43.  Loses game:     	---       	Black=1      Mistake:       	White=8     	Black=6      Inaccurate:     	White=2     	Black=2      OK:         	White=14    	Black=13     Best:        	White=2     	Black=3      Strong:       	---       	Black=3} 1-0

[Event "XVI Memorial Lezcano Montalvo 2024"]
[Site "Gran Canaria"]
[Date "2024.03.26"]
[Round "4.3"]
[White "Tutisani, Noe"]
[Black "Fiorito, Francisco"]
[Result "1/2-1/2"]
[ECO "A56"]
[WhiteElo "2405"]
[BlackElo "2368"]
[Annotator "TA"]
[PlyCount "87"]
[EventDate "2024.03.23"]
[EventType "swiss"]
[EventCountry "ESP"]
[SourceTitle "playchess.com"]
[Source "ChessBase"]
[SourceQuality "1"]
[TimeControl "5400+30"]

{[%evp 11,87,75,80,73,77,46,81,80,93,73,164,70,73,76,69,46,23,21,51,50,49,29,39,43,46,29,66,35,41,36,40,44,62,-52,-43,-55,-31,-50,-51,-65,-57,-41,-12,-23,-15,-6,-22,-102,0,0,0,0,0,-36,0,-82,-93,-101,-100,-85,0,-174,0,0,0,-8,-8,-8,-8,-8,0,0,0,-9,8,0,0,-8]} 1. d4 {[%emt 0:00:05]} Nf6 {[%emt 0:01:01]} 2. c4 {[%emt 0:00:08]} c5 {[%emt 0:00:58]} 3. d5 {[%emt 0:00:07]} e5 {[%emt 0:00:38]} 4. Nc3 {[%emt 0:00:31]} d6 {[%emt 0:00:05]} 5. e4 {[%emt 0:01:49]} g6 {[%emt 0:00:06]} 6. Nf3 {[%emt 0:03:33]} Bg7 {[%emt 0:00:07]} 7. g3 {[%emt 0:00:32]} O-O {[%emt 0:00:41]} 8. Bg2 {[%emt 0:00:04]} h6 {[%emt 0:02:24]} 9. O-O {[%emt 0:01:13] White is better.} Nh7 {[%emt 0:01:47]} 10. Bd2 {[%emt 0:02:03]} f5 {[%emt 0:09:47]} (10... Ng5 $16) 11. Qc1 {[%emt 0:03:10]} (11. Nh4 $18) 11... g5 $14 {[%emt 0:05:59]} 12. exf5 {[%emt 0:03:44]} Bxf5 {[%emt 0:00:17]} 13. Ne1 {[%emt 0:00:05] Wards off e4} Nd7 {[%emt 0:02:11]} 14. f3 {[%emt 0:05:13]} Qe7 {[%emt 0:03:38][%cal Oe5e4]} 15. Ne4 {[%emt 0:03:21]} Rf7 {[%emt 0:04:38]} 16. Nd3 {[%emt 0:04:59]} Raf8 {[%emt 0:01:00]} 17. Ndf2 {[%emt 0:01:08]} Ndf6 {[%emt 0:03:26]} 18. Be3 {[%emt 0:07:35]} Bd7 {[%emt 0:08:22]} 19. Qd2 {[%emt 0:01:22] White is more active.} Nxe4 {[%emt 0:01:08]} 20. Nxe4 {[%emt 0:01:17]} Nf6 {[%emt 0:03:30]} 21. Qa5 {[%emt 0:02:35]} b5 {[%emt 0:05:49]} 22. Nxf6+ {[%emt 0:08:56]} ({White should play} 22. Qa6 $14 Nxe4 23. fxe4) 22... Qxf6 $15 {[%emt 0:01:07]} 23. cxb5 {[%emt 0:03:01][%cal Of1f2] [#]} e4 $1 {[%emt 0:00:33]} 24. fxe4 {[%emt 0:22:24]} Qxb2 {[%emt 0:00:07] ...Bc3 would now be deadly.} 25. Rab1 $1 {[%emt 0:00:06]} Rxf1+ {[%emt 0:06:34]} (25... Qc2 {looks sharper.} 26. Rfc1 Qd3 27. Rb3 Qe2) 26. Rxf1 {[%emt 0:00:04]} Bxb5 {[%emt 0:00:41]} 27. Rxf8+ {[%emt 0:00:56]} Bxf8 {[%emt 0:00:01]} 28. h4 $1 {[%emt 0:00:21]} gxh4 $40 {[%emt 0:10:09][%mdl 128] Black mounts an attack.} (28... Qb1+ {simplifies} 29. Kh2 Bf1 30. Qd2 Bxg2 31. Qxg2 g4) 29. Bf4 {[%emt 0:00:51] [#]} (29. gxh4 $11 {remains equal.} Qa1+ 30. Kh2) 29... h3 {[%emt 0:05:42]} 30. Bxh3 $11 {[%emt 0:00:42]} Qd4+ {[%emt 0:01:01]} 31. Kh2 {[%emt 0:00:05]} Qf2+ {[%emt 0:02:16]} 32. Bg2 {[%emt 0:00:04]} Bd3 {[%emt 0:02:59]} 33. Qd2 {[%emt 0:03:05]} (33. Kh1 $1 $11) 33... Qxd2 $17 {[%emt 0:00:05]} 34. Bxd2 {[%emt 0:00:01][%mdl 4096] Endgame. KBB-KBB} c4 {[%emt 0:00:26]} 35. Bb4 {[%emt 0:04:35] [#]} Kf7 {[%emt 0:01:26]} (35... a5 $1 $17 {[%cal Ra5b4]} 36. Bxa5 Bg7) 36. Kg1 $2 {[%emt 0:00:42] [#]} (36. e5 $1 $11 {and White stays safe.}) 36... Be7 $2 {[%emt 0:01:43]} (36... a5 $1 $19 {[%cal Ra5b4]} 37. Bxa5 Bg7) 37. Kf2 $11 {[%emt 0:01:39] The position is equal.} h5 {[%emt 0:05:25]} 38. Bf3 {[%emt 0:02:00]} h4 {[%emt 0:00:22]} 39. gxh4 {[%emt 0:02:37]} Bxh4+ {[%emt 0:00:01]} 40. Kg2 {[%emt 0:00:44]} Be7 {[%emt 0:01:28]} 41. Kf2 {[%emt 0:00:11]} Bh4+ {[%emt 0:00:24]} 42. Kg2 {[%emt 0:00:05]} Be7 {[%emt 0:00:00][%cal Oa7a5]} 43. Kf2 {[%emt 0:00:05]} Bh4+ {[%emt 0:01:24]} 44. Kg2 {[%emt 0:14:42] Weighted Error Value: White=0.26 (precise) /Black=0.22 (precise) .  Loses game:     	White=1     	---        Missed win:     	---       	Black=1      Mistake:       	White=4     	Black=3      Inaccurate:     	White=3     	Black=5      OK:         	White=13    	Black=10     Best:        	White=2     	Black=1      Strong:       	White=2     	---        Brilliant:      	---       	Black=1} 1/2-1/2